fUSD/lending_fUSD_20240503
["ID","MTS","AMOUNT","RATE_DAILY","PERIOD"]
[325359693,1714750255278,-164.1814088,0.00041338,33]
[325359695,1714750255288,-961.0,0.00041342,7]
[325359697,1714750255300,-557.34727991,0.00041369,3]
[325359699,1714750255308,-1193.6,0.00041369,31]
[325359701,1714750255317,-1635.07,0.00041369,31]
[325359703,1714750255327,-2527.18,0.00041369,31]
[325359705,1714750255338,-1699.37,0.00041369,31]
[325359707,1714750255347,-591.86,0.00041369,31]
[325359709,1714750255357,-710.6,0.00041369,31]
[325359711,1714750255368,-500.0,0.00041369,31]
[325359713,1714750255377,-972.03,0.00041369,31]
[325359715,1714750255387,-1000.0,0.00041369,15]
[325359717,1714750255396,-609.66476088,0.00041369,31]
[325359719,1714750255405,-500.0,0.00041369,31]
[325359721,1714750255414,-691.7,0.00041369,31]
[325359723,1714750255424,-1659.41,0.00041369,31]
[325359725,1714750255433,-1792.23,0.00041369,31]
[325359727,1714750255444,-500.0,0.00041369,31]
[325359729,1714750255454,-500.0,0.00041369,31]
[325359731,1714750255464,-1620.98,0.00041369,31]
[325359733,1714750255474,-993.5,0.00041369,31]
[325359735,1714750255483,-1053.33,0.00041369,31]
[325359737,1714750255495,-553.45,0.00041369,31]
[325359739,1714750255504,-500.0,0.00041369,31]
[325359741,1714750255514,-441.95708341,0.00041369,31]
[325359743,1714750255523,-473.11144786,0.00041369,31]
[325359745,1714750255532,-500.0,0.00041369,31]
[325359747,1714750255541,-500.0,0.00041369,31]
[325359749,1714750255550,-627.27,0.00041369,31]
[325359751,1714750255560,-1412.47,0.00041369,31]
[325359753,1714750255569,-1063.69,0.00041369,31]
[325359755,1714750255578,-500.0,0.00041369,31]
[325359757,1714750255588,-500.0,0.00041369,31]
[325359759,1714750255597,-1361.09,0.00041369,31]
[325359761,1714750255606,-2848.52,0.00041369,31]
[325359763,1714750255615,-500.0,0.00041369,31]
[325359764,1714750255625,-500.0,0.00041369,31]
[325359766,1714750255634,-2780.63,0.00041369,31]
[325359768,1714750255643,-500.0,0.00041369,31]
[325359771,1714750255654,-500.0,0.00041369,31]
[325359772,1714750255663,-500.0,0.00041369,31]
[325359775,1714750255673,-500.0,0.00041369,31]
[325359776,1714750255682,-973.54,0.00041369,31]
[325359778,1714750255692,-1296.3,0.00041369,31]
[325359781,1714750255701,-500.0,0.00041369,31]
[325359782,1714750255711,-1440.62,0.00041369,31]
[325359785,1714750255720,-500.0,0.00041369,31]
[325359786,1714750255730,-500.0,0.00041369,31]
[325359789,1714750255741,-2196.46,0.00041369,31]
[325359791,1714750255750,-508.33,0.00041369,31]
[325359793,1714750255759,-500.0,0.00041369,31]
[325359795,1714750255768,-703.43,0.00041369,31]
[325359796,1714750255777,-500.0,0.00041369,31]
[325359799,1714750255787,-500.0,0.00041369,31]
[325359800,1714750255796,-500.0,0.00041369,31]
[325359802,1714750255805,-2369.42,0.00041369,31]
[325359804,1714750255814,-500.0,0.00041369,31]
[325359806,1714750255824,-500.0,0.00041369,2]
[325359808,1714750255833,-500.0,0.00041369,31]
[325359810,1714750255842,-1486.76,0.00041369,31]
[325359812,1714750255852,-500.0,0.00041369,31]
[325359814,1714750255862,-174.94532114,0.00041369,31]
[325359816,1714750255871,-500.0,0.00041369,31]
[325359818,1714750255881,-500.0,0.00041369,31]
[325359820,1714750255890,-4097.88,0.00041369,31]
[325359822,1714750255900,-500.0,0.00041369,31]
[325359824,1714750255910,-500.0,0.00041369,2]
[325359826,1714750255919,-573.9,0.00041369,31]
[325359828,1714750255928,-1066.7,0.00041369,31]
[325359830,1714750255939,-500.0,0.00041369,31]
[325359832,1714750255949,-500.0,0.00041369,31]
[325359834,1714750255959,-500.0,0.00041369,31]
[325359836,1714750255968,-500.0,0.00041369,31]
[325359838,1714750255977,-500.0,0.00041369,31]
[325359840,1714750255988,-500.0,0.00041369,31]
[325359842,1714750255997,-176.13643302,0.00041369,31]
[325359844,1714750256007,-500.0,0.00041369,31]
[325359846,1714750256016,-500.0,0.00041369,31]
[325359848,1714750256025,-1326.12,0.00041369,31]
[325359850,1714750256036,-914.04,0.00041369,31]
[325359852,1714750256045,-500.0,0.00041369,31]
[325359854,1714750256055,-1711.57,0.00041369,31]
[325359856,1714750256065,-500.0,0.00041369,31]
[325359858,1714750256075,-2468.83,0.00041369,2]
[325359860,1714750256084,-500.0,0.00041369,31]
[325359862,1714750256094,-500.0,0.00041369,31]
[325359864,1714750256103,-508.84976125,0.00041369,31]
[325359866,1714750256112,-500.0,0.00041369,31]
[325359868,1714750256122,-500.0,0.00041369,31]
[325359870,1714750256131,-500.0,0.00041369,30]
[325359872,1714750256140,-688.39,0.00041369,31]
[325359874,1714750256149,-599.64,0.00041369,31]
[325359876,1714750256158,-500.0,0.00041369,31]
[325359878,1714750256167,-2405.87,0.00041369,31]
[325359879,1714750256177,-547.4,0.00041369,31]
[325359880,1714750256186,-500.0,0.00041369,31]
[325359881,1714750256195,-500.0,0.00041369,31]
[325359882,1714750256204,-500.0,0.00041369,31]
[325359883,1714750256214,-500.0,0.00041369,31]
[325359884,1714750256223,-500.0,0.00041369,31]
[325359885,1714750256233,-500.0,0.00041369,31]
[325359886,1714750256244,-1803.84,0.00041369,31]
[325359887,1714750256255,-500.0,0.00041369,31]
[325359888,1714750256265,-1121.0,0.00041369,31]
[325359891,1714750256276,-2354.99,0.00041369,31]
[325359892,1714750256286,-500.0,0.00041369,31]
[325359894,1714750256299,-500.0,0.00041369,31]
[325359896,1714750256308,-1554.25,0.00041369,31]
[325359898,1714750256318,-2192.88,0.00041369,31]
[325359900,1714750256327,-500.0,0.00041369,31]
[325359902,1714750256338,-500.0,0.00041369,31]
[325359904,1714750256346,-500.0,0.00041369,31]
[325359906,1714750256356,-500.0,0.00041369,31]
[325359908,1714750256366,-500.0,0.00041369,31]
[325359910,1714750256375,-500.0,0.00041369,31]
[325359912,1714750256385,-500.0,0.00041369,31]
[325359914,1714750256394,-1061.7,0.00041369,31]
[325359916,1714750256403,-1008.26401614,0.00041369,31]
[325359918,1714750256412,-1549.7,0.00041369,31]
[325359920,1714750256422,-565.7,0.00041369,31]
[325359922,1714750256432,-500.0,0.00041369,31]
[325359924,1714750256441,-500.0,0.00041369,31]
[325359925,1714750256450,-1005.12,0.00041369,31]
[325359926,1714750256460,-2091.98,0.00041369,31]
[325359927,1714750256470,-500.0,0.00041369,31]
[325359928,1714750256479,-500.0,0.00041369,31]
[325359929,1714750256490,-183.74114708,0.00041369,31]
[325359930,1714750256500,-2040.23,0.00041369,31]
[325359931,1714750256509,-500.0,0.00041369,31]
[325359932,1714750256519,-987.12,0.00041369,31]
[325359933,1714750256528,-500.0,0.00041369,31]
[325359934,1714750256538,-500.0,0.00041369,31]
[325359935,1714750256548,-2845.92,0.00041369,31]
[325359936,1714750256557,-500.0,0.00041369,31]
[325359937,1714750256568,-500.0,0.00041369,31]
[325359938,1714750256577,-781.78,0.00041369,31]
[325359939,1714750256587,-1481.82,0.00041369,31]
[325359940,1714750256598,-500.0,0.00041369,31]
[325359941,1714750256608,-518.9,0.00041369,31]
[325359942,1714750256618,-1179.17,0.00041369,31]
[325359943,1714750256627,-1404.61,0.00041369,31]
[325359944,1714750256637,-603.35,0.00041369,31]
[325359945,1714750256647,-509.00676086,0.00041369,31]
[325359946,1714750256656,-688.09,0.00041369,31]
[325359947,1714750256666,-1529.61,0.00041369,30]
[325359948,1714750256675,-500.0,0.00041369,31]
[325359949,1714750256685,-1638.99,0.00041369,31]
[325359950,1714750256694,-500.0,0.00041369,31]
[325359951,1714750256704,-500.0,0.00041369,31]
[325359952,1714750256713,-750.0,0.00041369,30]
[325359953,1714750256722,-1348.71,0.00041369,31]
[325359954,1714750256731,-500.0,0.00041369,31]
[325359955,1714750256742,-505.66484348,0.00041369,31]
[325359956,1714750256751,-500.0,0.00041369,31]
[325359957,1714750256761,-1054.46,0.00041369,31]
[325359958,1714750256770,-500.0,0.00041369,31]
[325359959,1714750256779,-1179.41,0.00041369,31]
[325359960,1714750256789,-500.0,0.00041369,31]
[325359961,1714750256798,-1218.1,0.00041369,31]
[325359962,1714750256807,-560.97,0.00041369,31]
[325359963,1714750256816,-500.0,0.00041369,31]
[325359964,1714750256825,-1475.19,0.00041369,31]
[325359965,1714750256835,-2265.39,0.00041369,31]
[325359966,1714750256845,-500.0,0.00041369,31]
[325359967,1714750256854,-550.94,0.00041369,31]
[325359968,1714750256863,-1980.82,0.00041369,31]
[325359969,1714750256873,-500.0,0.00041369,31]
[325359970,1714750256883,-770.0,0.00041369,31]
[325359971,1714750256892,-1138.06,0.00041369,31]
[325359972,1714750256902,-1213.3,0.00041369,31]
[325359973,1714750256911,-500.0,0.00041369,31]
[325359974,1714750256920,-500.0,0.00041369,31]
[325359975,1714750256930,-500.0,0.00041369,31]
[325359976,1714750256940,-500.0,0.00041369,31]
[325359977,1714750256948,-500.0,0.00041369,31]
[325359978,1714750256958,-602.22,0.00041369,31]
[325359979,1714750256968,-500.0,0.00041369,31]
[325359980,1714750256977,-730.69,0.00041369,31]
[325359981,1714750256987,-577.33,0.00041369,31]
[325359982,1714750256997,-500.0,0.00041369,31]
[325359983,1714750257006,-735.66,0.00041369,31]
[325359984,1714750257015,-500.0,0.00041369,31]
[325359985,1714750257024,-3823.17,0.00041369,31]
[325359986,1714750257034,-754.87,0.00041369,31]
[325359987,1714750257043,-1186.87,0.00041369,31]
[325359988,1714750257054,-500.0,0.00041369,31]
[325359989,1714750257064,-1780.98,0.00041369,31]
[325359990,1714750257074,-1471.9,0.00041369,31]
[325359991,1714750257084,-500.0,0.00041369,31]
[325359992,1714750257094,-500.0,0.00041369,31]
[325359993,1714750257104,-848.67,0.00041369,31]
[325359994,1714750257114,-500.0,0.00041369,31]
[325359995,1714750257123,-1782.97,0.00041369,31]
[325359996,1714750257133,-1236.03,0.00041369,31]
[325359997,1714750257142,-500.0,0.00041369,31]
[325359998,1714750257152,-500.0,0.00041369,31]
[325359999,1714750257162,-1268.57,0.00041369,31]
[325360000,1714750257172,-500.0,0.00041369,31]
[325360001,1714750257182,-500.0,0.00041369,31]
[325360002,1714750257191,-438.77382221,0.00041369,31]
[325360003,1714750257200,-584.86573858,0.00041369,31]
[325360004,1714750257210,-507.32,0.00041369,31]
[325360005,1714750257219,-712.0,0.00041369,31]
[325360006,1714750257229,-500.0,0.00041369,31]
[325360007,1714750257240,-500.0,0.00041369,31]
[325360008,1714750257252,-500.0,0.00041369,31]
[325360009,1714750257262,-1208.77,0.00041369,31]
[325360010,1714750257272,-1490.55,0.00041369,31]
[325360011,1714750257282,-555.92,0.00041369,31]
[325360012,1714750257296,-500.0,0.00041369,31]
[325360013,1714750257306,-500.0,0.00041369,31]
[325360014,1714750257316,-500.0,0.00041369,31]
[325360015,1714750257327,-500.0,0.00041369,31]
[325360016,1714750257336,-500.0,0.00041369,31]
[325360017,1714750257346,-500.0,0.00041369,31]
[325360018,1714750257356,-500.0,0.00041369,31]
[325360019,1714750257366,-2767.75,0.00041369,31]
[325360020,1714750257376,-500.0,0.00041369,31]
[325360021,1714750257386,-1766.6,0.00041369,31]
[325360022,1714750257396,-500.0,0.00041369,31]
[325360023,1714750257405,-500.0,0.00041369,31]
[325360024,1714750257415,-500.0,0.00041369,31]
[325360025,1714750257424,-1778.27,0.00041369,31]
[325360026,1714750257434,-500.0,0.00041369,31]
[325360027,1714750257443,-1142.36,0.00041369,31]
[325360028,1714750257453,-902.74,0.00041369,31]
[325360029,1714750257463,-500.0,0.00041369,31]
[325360030,1714750257473,-906.63,0.00041369,31]
[325360031,1714750257483,-500.0,0.00041369,31]
[325360032,1714750257493,-520.10735751,0.00041369,31]
[325360033,1714750257503,-500.0,0.00041369,31]
[325360034,1714750257513,-500.0,0.00041369,31]
[325360035,1714750257523,-500.0,0.00041369,31]
[325360036,1714750257533,-2017.2,0.00041369,31]
[325360037,1714750257543,-500.0,0.00041369,31]
[325360038,1714750257552,-1407.35,0.00041369,31]
[325360039,1714750257563,-1428.15,0.00041369,31]
[325360040,1714750257572,-500.0,0.00041369,31]
[325360041,1714750257582,-500.0,0.00041369,31]
[325360042,1714750257592,-720.17,0.00041369,31]
[325360043,1714750257603,-500.0,0.00041369,31]
[325360044,1714750257613,-500.0,0.00041369,31]
[325360045,1714750257623,-500.0,0.00041369,31]
[325360046,1714750257633,-984.04,0.00041369,31]
[325360047,1714750257643,-971.89,0.00041369,31]
[325360048,1714750257653,-500.0,0.00041369,31]
[325360049,1714750257663,-500.0,0.00041369,31]
[325360050,1714750257673,-500.0,0.00041369,31]
[325360051,1714750257684,-1380.83,0.00041369,31]
[325360052,1714750257694,-718.7,0.00041369,31]
[325360053,1714750257704,-500.0,0.00041369,31]
[325360054,1714750257714,-1554.01,0.00041369,31]
[325360055,1714750257725,-500.0,0.00041369,31]
[325360056,1714750257735,-540.18,0.00041369,31]
[325360057,1714750257747,-1131.81,0.00041369,31]
[325360058,1714750257758,-500.0,0.00041369,31]
[325360059,1714750257768,-704.54,0.00041369,31]
[325360060,1714750257779,-1262.74,0.00041369,31]
[325360061,1714750257789,-500.0,0.00041369,31]
[325360062,1714750257799,-268.61146953,0.00041369,31]
[325360063,1714750257809,-500.0,0.00041369,31]
[325360064,1714750257819,-529.47,0.00041369,31]
[325360065,1714750257829,-500.0,0.00041369,31]
[325360066,1714750257838,-638.04,0.00041369,31]
[325360067,1714750257849,-500.0,0.00041369,31]
[325360068,1714750257859,-1330.2,0.00041369,31]
[325360069,1714750257869,-3114.14,0.00041369,31]
[325360071,1714750257879,-639.81,0.00041369,31]
[325360072,1714750257888,-545.71365847,0.00041369,31]
[325360075,1714750257898,-500.0,0.00041369,31]
[325360077,1714750257908,-3324.33,0.00041369,31]
[325360079,1714750257918,-805.28,0.00041369,31]
[325360081,1714750257928,-500.0,0.00041369,31]
[325360083,1714750257938,-1577.72,0.00041369,31]
[325360085,1714750257948,-500.0,0.00041369,31]
[325360087,1714750257957,-1737.41,0.00041369,31]
[325360088,1714750257967,-500.0,0.00041369,31]
[325360089,1714750257977,-500.0,0.00041369,31]
[325360090,1714750257988,-500.0,0.00041369,31]
[325360091,1714750257998,-500.0,0.00041369,31]
[325360092,1714750258009,-631.03,0.00041369,31]
[325360093,1714750258019,-1358.88,0.00041369,31]
[325360094,1714750258029,-559.21,0.00041369,31]
[325360095,1714750258038,-180.54777204,0.00041369,31]
[325360096,1714750258048,-502.04516273,0.00041369,31]
[325360097,1714750258059,-584.14901119,0.00041369,31]
[325360098,1714750258069,-500.0,0.00041369,31]
[325360099,1714750258079,-562.42723574,0.00041369,31]
[325360100,1714750258090,-500.0,0.00041369,31]
[325360101,1714750258099,-500.0,0.00041369,31]
[325360102,1714750258109,-683.12,0.00041369,31]
[325360103,1714750258119,-519.33862495,0.00041369,31]
[325360104,1714750258129,-500.0,0.00041369,31]
[325360105,1714750258139,-500.0,0.00041369,31]
[325360106,1714750258148,-500.0,0.00041369,31]
[325360107,1714750258158,-390.11230236,0.00041369,31]
[325360108,1714750258168,-1648.79,0.00041369,31]
[325360109,1714750258178,-1579.73,0.00041369,31]
[325360111,1714750258187,-500.0,0.00041369,31]
[325360113,1714750258197,-500.0,0.00041369,31]
[325360115,1714750258208,-500.0,0.00041369,31]
[325360117,1714750258217,-716.99,0.00041369,31]
[325360119,1714750258227,-500.0,0.00041369,31]
[325360121,1714750258237,-653.71,0.00041369,31]
[325360123,1714750258249,-1631.58,0.00041369,31]
[325360125,1714750258259,-802.35,0.00041369,31]
[325360127,1714750258269,-1310.89,0.00041369,31]
[325360129,1714750258279,-677.13,0.00041369,31]
[325360131,1714750258291,-500.0,0.00041369,31]
[325360133,1714750258302,-830.25,0.00041369,31]
[325360135,1714750258312,-513.16890036,0.00041369,31]
[325360137,1714750258322,-500.0,0.00041369,31]
[325360139,1714750258332,-500.0,0.00041369,31]
[325360141,1714750258342,-765.45,0.00041369,31]
[325360143,1714750258352,-1045.71,0.00041369,31]
[325360145,1714750258361,-500.0,0.00041369,31]
[325360147,1714750258375,-500.0,0.00041369,31]
[325360149,1714750258384,-645.53,0.00041369,31]
[325360151,1714750258394,-288.97,0.00041369,31]
[325360154,1714750258404,-376.86406238,0.00041369,31]
[325360156,1714750258413,-2906.32,0.00041369,31]
[325360158,1714750258423,-500.0,0.00041369,31]
[325360160,1714750258434,-965.07,0.00041369,31]
[325360162,1714750258444,-990.81,0.00041369,31]
[325360164,1714750258453,-1549.5,0.00041369,31]
[325360166,1714750258463,-500.0,0.00041369,31]
[325360168,1714750258473,-500.0,0.00041369,31]
[325360170,1714750258483,-1445.71,0.00041369,31]
[325360172,1714750258495,-500.0,0.00041369,31]
[325360174,1714750258504,-500.0,0.00041369,31]
[325360176,1714750258514,-500.0,0.00041369,31]
[325360178,1714750258524,-1154.5,0.00041369,31]
[325360180,1714750258534,-1506.63,0.00041369,31]
[325360182,1714750258545,-500.0,0.00041369,31]
[325360184,1714750258555,-728.48,0.00041369,31]
[325360186,1714750258565,-4840.48,0.00041369,31]
[325360188,1714750258575,-500.0,0.00041369,31]
[325360190,1714750258585,-1695.85,0.00041369,31]
[325360192,1714750258594,-2182.66,0.00041369,31]
[325360194,1714750258604,-5480.32,0.00041369,31]
[325360196,1714750258614,-526.22,0.00041369,31]
[325360198,1714750258624,-500.0,0.00041369,31]
[325360200,1714750258634,-4072.7,0.00041369,31]
[325360202,1714750258644,-500.0,0.00041369,31]
[325360204,1714750258654,-500.0,0.00041369,31]
[325360206,1714750258664,-1135.67,0.00041369,31]
[325360208,1714750258673,-500.0,0.00041369,31]
[325360210,1714750258684,-1556.4,0.00041369,31]
[325360213,1714750258694,-1014.56,0.00041369,31]
[325360215,1714750258704,-32891.4,0.00041369,31]
[325360217,1714750258714,-225.36387415,0.00041369,31]
[325360219,1714750258724,-1346.39,0.00041369,31]
[325360221,1714750258734,-1270.45,0.00041369,31]
[325360223,1714750258745,-2566.39,0.00041369,31]
[325360225,1714750258755,-500.0,0.00041369,31]
[325360227,1714750258765,-666.52,0.00041369,31]
[325360229,1714750258775,-556.95,0.00041369,31]
[325360231,1714750258784,-500.0,0.00041369,31]
[325360233,1714750258794,-500.0,0.00041369,31]
[325360235,1714750258804,-500.0,0.00041369,31]
[325360237,1714750258814,-500.0,0.00041369,31]
[325360239,1714750258824,-1496.18,0.00041369,31]
[325360241,1714750258834,-500.0,0.00041369,31]
[325360243,1714750258844,-500.0,0.00041369,31]
[325360245,1714750258854,-2035.73,0.00041369,31]
[325360247,1714750258864,-500.0,0.00041369,31]
[325360249,1714750258874,-2994.01,0.00041369,31]
[325360251,1714750258884,-5229.83,0.00041369,31]
[325360253,1714750258894,-1299.05,0.00041369,31]
[325360255,1714750258904,-500.0,0.00041369,31]
[325360257,1714750258914,-500.0,0.00041369,31]
[325360259,1714750258924,-500.0,0.00041369,31]
[325360261,1714750258935,-2207.14,0.00041369,31]
[325360264,1714750258946,-500.0,0.00041369,31]
[325360266,1714750258956,-794.08,0.00041369,31]
[325360268,1714750258965,-500.0,0.00041369,31]
[325360270,1714750258975,-519.5294666,0.00041369,31]
[325360272,1714750258986,-2728.19,0.00041369,31]
[325360274,1714750258996,-1365.99,0.00041369,31]
[325360276,1714750259007,-500.0,0.00041369,31]
[325360278,1714750259017,-500.0,0.00041369,31]
[325360280,1714750259027,-12395.6,0.00041369,31]
[325360282,1714750259037,-1961.4,0.00041369,31]
[325360284,1714750259047,-789.75,0.00041369,31]
[325360286,1714750259057,-500.0,0.00041369,31]
[325360288,1714750259068,-500.0,0.00041369,31]
[325360290,1714750259078,-505.96905312,0.00041369,31]
[325360291,1714750259088,-3071.22,0.00041369,31]
[325360292,1714750259098,-1489.98,0.00041369,31]
[325360293,1714750259107,-1329.91,0.00041369,31]
[325360294,1714750259117,-500.0,0.00041369,31]
[325360295,1714750259127,-4404.95,0.00041369,31]
[325360296,1714750259137,-2932.85,0.00041369,31]
[325360297,1714750259147,-564.01,0.00041369,31]
[325360298,1714750259156,-3170.37,0.00041369,31]
[325360299,1714750259166,-1496.38,0.00041369,31]
[325360300,1714750259176,-1039.16,0.00041369,31]
[325360301,1714750259186,-500.0,0.00041369,31]
[325360302,1714750259197,-3198.86,0.00041369,31]
[325360303,1714750259207,-8365.5,0.00041369,31]
[325360304,1714750259217,-503.02,0.00041369,31]
[325360305,1714750259227,-1319.83,0.00041369,31]
[325360306,1714750259237,-500.0,0.00041369,31]
[325360307,1714750259248,-500.0,0.00041369,31]
[325360308,1714750259259,-2264.03,0.00041369,31]
[325360309,1714750259269,-1464.47,0.00041369,31]
[325360310,1714750259279,-500.0,0.00041369,31]
[325360311,1714750259292,-500.0,0.00041369,31]
[325360312,1714750259304,-500.0,0.00041369,31]
[325360313,1714750259314,-500.0,0.00041369,31]
[325360314,1714750259324,-45807.96,0.00041369,31]
[325360315,1714750259334,-2336.61,0.00041369,31]
[325360316,1714750259345,-500.0,0.00041369,31]
[325360317,1714750259355,-500.0,0.00041369,31]
[325360318,1714750259365,-7727.04,0.00041369,31]
[325360319,1714750259376,-500.0,0.00041369,31]
[325360320,1714750259387,-1951.53,0.00041369,31]
[325360321,1714750259399,-500.0,0.00041369,31]
[325360322,1714750259409,-896.46,0.00041369,31]
[325360323,1714750259419,-500.0,0.00041369,31]
[325360336,1714750259686,-500.0,0.00041369,31]
[325360337,1714750259696,-500.0,0.00041369,31]
[325360338,1714750259706,-11302.99,0.00041369,31]
[325360339,1714750259716,-806.42,0.00041369,31]
[325360340,1714750259727,-500.0,0.00041369,31]
[325360341,1714750259736,-1115.18,0.00041369,31]
[325360342,1714750259748,-1070.99,0.00041369,31]
[325360343,1714750259758,-4671.2,0.00041369,31]
[325360344,1714750259768,-500.0,0.00041369,31]
[325360345,1714750259778,-924.9,0.00041369,31]
[325360346,1714750259787,-500.0,0.00041369,31]
[325360347,1714750259797,-1716.37,0.00041369,31]
[325360348,1714750259807,-500.0,0.00041369,31]
[325360349,1714750259816,-500.0,0.00041369,31]
[325360351,1714750259826,-2780.39,0.00041369,31]
[325360353,1714750259836,-500.0,0.00041369,31]
[325360355,1714750259846,-516.75697493,0.00041369,31]
[325360357,1714750259855,-500.0,0.00041369,31]
[325360359,1714750259865,-761.23,0.00041369,31]
[325360360,1714750259875,-4710.76,0.00041369,31]
[325360361,1714750259884,-1194.37,0.00041369,31]
[325360362,1714750259894,-500.0,0.00041369,31]
[325360363,1714750259903,-2815.72,0.00041369,31]
[325360364,1714750259912,-559.30061422,0.00041369,31]
[325360365,1714750259922,-500.0,0.00041369,31]
[325360366,1714750259931,-500.0,0.00041369,31]
[325360367,1714750259940,-500.0,0.00041369,31]
[325360368,1714750259950,-500.0,0.00041369,31]
[325360369,1714750259959,-500.0,0.00041369,31]
[325360371,1714750259968,-662.2,0.00041369,31]
[325360373,1714750259978,-1464.57,0.00041369,31]
[325360375,1714750259987,-509.45961404,0.00041369,31]
[325360377,1714750259997,-500.0,0.00041369,31]
[325360379,1714750260007,-17756.81,0.00041369,31]
[325360381,1714750260018,-500.0,0.00041369,31]
[325360383,1714750260028,-500.0,0.00041369,31]
[325360385,1714750260038,-500.0,0.00041369,31]
[325360387,1714750260047,-6908.26,0.00041369,31]
[325360389,1714750260057,-964.13,0.00041369,31]
[325360391,1714750260067,-500.0,0.00041369,31]
[325360393,1714750260077,-1259.25,0.00041369,31]
[325360395,1714750260086,-5671.63751055,0.00041369,31]
[325360450,1714750260631,-570.77248945,0.00041369,31]
[325360452,1714750260640,-2848.2,0.00041369,31]
[325360454,1714750260651,-500.0,0.00041369,31]
[325360456,1714750260660,-5.56378244,0.00041369,31]
[325360533,1714750261405,-911.57,0.0003435,2]
[325360535,1714750261414,-163.01,0.00034624,2]
[325360537,1714750261424,-800.0,0.000379,13]
[325360539,1714750261434,-1649.510415,0.00040548,14]
[325360541,1714750261443,-500.0,0.00041095,30]
[325360544,1714750261453,-494.43621756,0.00041369,31]
[325360546,1714750261462,-1648.31,0.00041369,31]
[325360548,1714750261472,-505.26225014,0.00041369,31]
[325360550,1714750261481,-500.0,0.00041369,31]
[325360552,1714750261490,-784.29,0.00041369,31]
[325360554,1714750261501,-15003.45,0.00041369,31]
[325360555,1714750261510,-500.0,0.00041369,31]
[325360558,1714750261520,-500.0,0.00041369,31]
[325360559,1714750261529,-500.0,0.00041369,31]
[325360561,1714750261539,-1086.49,0.00041369,31]
[325360564,1714750261549,-500.0,0.00041369,31]
[325360566,1714750261558,-500.0,0.00041369,31]
[325360568,1714750261567,-2820.67,0.00041369,31]
[325360570,1714750261576,-906.91,0.00041369,31]
[325360571,1714750261586,-500.0,0.00041369,31]
[325360573,1714750261595,-500.0,0.00041369,31]
[325360576,1714750261605,-500.0,0.00041369,31]
[325360578,1714750261614,-3015.16,0.00041369,31]
[325360580,1714750261624,-500.0,0.00041369,31]
[325360581,1714750261633,-4252.65,0.00041369,31]
[325360585,1714750261741,-500.0,0.00041369,31]
[325360587,1714750261752,-4712.7,0.00041369,31]
[325360589,1714750261762,-500.0,0.00041369,31]
[325360591,1714750261772,-1551.13,0.00041369,31]
[325360593,1714750261781,-965.57,0.00041369,31]
[325360595,1714750261790,-500.0,0.00041369,31]
[325360597,1714750261799,-22542.35,0.00041369,31]
[325360599,1714750261808,-748.64,0.00041369,31]
[325360601,1714750261818,-509.22458388,0.00041369,31]